fUST/lending_fUST_20250505
["ID","MTS","AMOUNT","RATE_DAILY","PERIOD"]
[359931134,1746431452906,-467.43,0.00036438,14]
[359931135,1746431452916,-400.0,0.00036438,14]
[359931137,1746431452925,-384.74,0.00036438,14]
[359931140,1746431452935,-151.0,0.00036438,14]
[359931141,1746431452944,-452.99,0.00036438,14]
[359931143,1746431452954,-400.0,0.00036438,14]
[359931146,1746431452963,-478.31,0.00036438,14]
[359931148,1746431452973,-400.0,0.00036438,14]
[359931149,1746431452982,-151.0,0.00036438,14]
[359931152,1746431452991,-400.0,0.00036438,14]
[359931153,1746431453002,-400.0,0.00036438,14]
[359931156,1746431453012,-400.0,0.00036438,14]
[359931157,1746431453021,-400.0,0.00036438,14]
[359931159,1746431453031,-549.68517125,0.00036438,14]
[359931161,1746431453040,-400.0,0.00036438,14]
[359931163,1746431453050,-400.0,0.00036438,14]
[359931165,1746431453059,-400.0,0.00036438,14]
[359931167,1746431453068,-400.0,0.00036438,14]
[359931169,1746431453077,-400.0,0.00036438,14]
[359931171,1746431453087,-444.04,0.00036438,14]
[359931173,1746431453096,-400.0,0.00036438,14]
[359931175,1746431453106,-200.0,0.00036438,14]
[359931178,1746431453116,-518.59,0.00036438,14]
[359931179,1746431453125,-400.0,0.00036438,14]
[359931181,1746431453134,-1222.27,0.00036438,14]
[359931184,1746431453144,-400.0,0.00036438,14]
[359931186,1746431453153,-400.0,0.00036438,14]
[359931188,1746431453163,-1484.31,0.00036438,14]
[359931190,1746431453172,-400.0,0.00036438,14]
[359931192,1746431453182,-1181.94,0.00036438,14]
[359931194,1746431453191,-400.0,0.00036438,14]
[359931196,1746431453201,-400.0,0.00036438,14]
[359931197,1746431453210,-400.0,0.00036438,14]
[359931199,1746431453220,-400.0,0.00036438,14]
[359931202,1746431453229,-151.0,0.00036438,14]
[359931204,1746431453239,-151.0,0.00036438,14]
[359931206,1746431453248,-151.0,0.00036438,14]
[359931208,1746431453257,-2007.85,0.00036438,14]
[359931210,1746431453266,-400.0,0.00036438,14]
[359931212,1746431453275,-524.96,0.00036438,14]
[359931214,1746431453284,-676.94,0.00036438,14]
[359931215,1746431453293,-407.05378059,0.00036438,14]
[359931217,1746431453302,-400.0,0.00036438,14]
[359931219,1746431453310,-400.0,0.00036438,14]
[359931222,1746431453320,-819.404056,0.00036438,14]
[359931224,1746431453329,-594.21,0.00036438,14]
[359931226,1746431453342,-400.0,0.00036438,14]
[359931228,1746431453352,-819.404056,0.00036438,14]
[359931230,1746431453360,-5636.69,0.00036438,14]
[359931232,1746431453369,-400.0,0.00036438,14]
[359931234,1746431453379,-400.0,0.00036438,14]
[359931236,1746431453388,-400.0,0.00036438,14]
[359931238,1746431453398,-400.0,0.00036438,14]
[359931240,1746431453407,-506.47,0.00036438,14]
[359931241,1746431453418,-400.0,0.00036438,14]
[359931244,1746431453427,-577.87,0.00036438,14]
[359931246,1746431453436,-253.131864,0.00036438,14]
[359931248,1746431453445,-2214.19,0.00036438,14]
[359931250,1746431453455,-253.131864,0.00036438,14]
[359931252,1746431453464,-400.0,0.00036438,14]
[359931253,1746431453473,-439.27,0.00036438,14]
[359931256,1746431453482,-400.0,0.00036438,14]
[359931258,1746431453492,-400.0,0.00036438,14]
[359931259,1746431453501,-248.996969,0.00036438,14]
[359931262,1746431453511,-601.23,0.00036438,14]
[359931264,1746431453519,-400.0,0.00036438,14]
[359931266,1746431453528,-400.0,0.00036438,14]
[359931268,1746431453537,-400.0,0.00036438,14]
[359931270,1746431453546,-400.0,0.00036438,14]
[359931272,1746431453556,-400.0,0.00036438,14]
[359931274,1746431453565,-400.0,0.00036438,14]
[359931276,1746431453575,-402.72,0.00036438,14]
[359931278,1746431453583,-536.12589499,0.00036438,14]
[359931280,1746431453593,-168.214865,0.00036438,14]
[359931281,1746431453603,-168.214865,0.00036438,14]
[359931284,1746431453612,-151.0,0.00036438,14]
[359931286,1746431453621,-533.19,0.00036438,14]
[359931288,1746431453631,-400.0,0.00036438,14]
[359931290,1746431453640,-400.0,0.00036438,14]
[359931292,1746431453649,-400.0,0.00036438,14]
[359931294,1746431453658,-409.03901445,0.00036438,14]
[359931296,1746431453667,-657.78,0.00036438,14]
[359931298,1746431453676,-400.0,0.00036438,14]
[359931300,1746431453685,-3148.33,0.00036438,14]
[359931302,1746431453695,-400.0,0.00036438,14]
[359931304,1746431453704,-400.0,0.00036438,14]
[359931306,1746431453714,-400.0,0.00036438,14]
[359931308,1746431453723,-708.598573,0.00036438,14]
[359931318,1746431453806,-400.0,0.00036438,14]
[359931320,1746431453815,-400.0,0.00036438,14]
[359931322,1746431453825,-400.0,0.00036438,14]
[359931324,1746431453834,-708.598573,0.00036438,14]
[359931326,1746431453843,-520.25,0.00036438,14]
[359931328,1746431453852,-400.0,0.00036438,14]
[359931330,1746431453861,-400.0,0.00036438,14]
[359931332,1746431453870,-1424.37,0.00036438,14]
[359931334,1746431453879,-400.0,0.00036438,14]
[359931336,1746431453889,-514.9,0.00036438,14]
[359931338,1746431453899,-2867.55,0.00036438,14]
[359931340,1746431453908,-400.0,0.00036438,14]
[359931342,1746431453917,-500.0,0.00036438,14]
[359931344,1746431453927,-471.11,0.00036438,14]
[359931346,1746431453936,-400.0,0.00036438,14]
[359931348,1746431453945,-727.17,0.00036438,14]
[359931350,1746431453954,-2092.45,0.00036438,14]
[359931352,1746431453964,-406.91010356,0.00036438,14]
[359931354,1746431453973,-151.0,0.00036438,14]
[359931356,1746431453983,-400.0,0.00036438,14]
[359931358,1746431453992,-400.0,0.00036438,14]
[359931360,1746431454003,-1835.12,0.00036438,14]
[359931362,1746431454012,-3261.67,0.00036438,14]
[359931363,1746431454022,-1081.5,0.00036438,14]
[359931364,1746431454031,-6831.86,0.00036438,14]
[359931365,1746431454040,-400.0,0.00036438,14]
[359931366,1746431454050,-151.0,0.00036438,14]
[359931367,1746431454059,-551.86,0.00036438,14]
[359931368,1746431454069,-423.41,0.00036438,14]
[359931369,1746431454078,-400.0,0.00036438,14]
[359931370,1746431454087,-760.49,0.00036438,14]
[359931371,1746431454095,-400.0,0.00036438,14]
[359931372,1746431454105,-3375.42,0.00036438,14]
[359931373,1746431454114,-3084.1,0.00036438,14]
[359931374,1746431454122,-537.19,0.00036438,14]
[359931375,1746431454131,-400.0,0.00036438,14]
[359931376,1746431454140,-400.0,0.00036438,14]
[359931377,1746431454150,-582.03,0.00036438,14]
[359931379,1746431454159,-561.7,0.00036438,14]
[359931381,1746431454169,-151.0,0.00036438,14]
[359931383,1746431454179,-151.0,0.00036438,14]
[359931385,1746431454189,-2861.16,0.00036438,14]
[359931387,1746431454198,-960.8,0.00036438,14]
[359931389,1746431454208,-151.0,0.00036438,14]
[359931391,1746431454217,-1245.99,0.00036438,14]
[359931393,1746431454227,-400.0,0.00036438,14]
[359931395,1746431454236,-400.0,0.00036438,14]
[359931397,1746431454245,-400.0,0.00036438,14]
[359931399,1746431454255,-917.15,0.00036438,14]
[359931401,1746431454265,-152.155241,0.00036438,14]
[359931403,1746431454274,-400.0,0.00036438,14]
[359931405,1746431454284,-798.63,0.00036438,14]
[359931407,1746431454293,-2164.37,0.00036438,14]
[359931409,1746431454303,-151.0,0.00036438,14]
[359931411,1746431454312,-500.0,0.00036465,14]
[359931413,1746431454322,-500.0,0.00036465,14]
[359931415,1746431454333,-500.0,0.00036473,5]
[359931417,1746431454344,-463.51008437,0.00036473,5]
[359931419,1746431454353,-150.0,0.00036473,5]
[359931421,1746431454363,-503.62347096,0.00036473,5]
[359931423,1746431454372,-500.0,0.00036473,5]
[359931425,1746431454381,-500.0,0.00036473,5]
[359931427,1746431454390,-749.37037271,0.00036486,34]
[359931429,1746431454400,-500.0,0.00036493,14]
[359931431,1746431454409,-500.0,0.00036493,14]
[359931433,1746431454419,-467.72875094,0.000365,2]
[359931435,1746431454429,-4000.0,0.000365,25]
[359931437,1746431454439,-500.0,0.0003652,14]
[359931439,1746431454448,-500.0,0.0003652,14]
[359931442,1746431454458,-500.0,0.00036547,14]
[359931444,1746431454467,-500.0,0.00036547,14]
[359931445,1746431454477,-500.0,0.00036575,14]
[359931448,1746431454486,-500.0,0.00036575,14]
[359931450,1746431454496,-500.0,0.00036602,14]
[359931452,1746431454506,-500.0,0.00036602,14]
[359931453,1746431454516,-500.0,0.0003663,14]
[359931455,1746431454525,-500.0,0.0003663,14]
[359931457,1746431454534,-700.0,0.0003663,60]
[359931459,1746431454544,-500.0,0.00036657,14]
[359931461,1746431454553,-500.0,0.00036657,14]
[359931463,1746431454562,-151.0,0.00036684,14]
[359931465,1746431454572,-5354.805601,0.00036684,2]
[359931468,1746431454582,-5354.805601,0.00036684,2]
[359931470,1746431454591,-500.0,0.00036684,14]
[359931471,1746431454600,-500.0,0.00036684,14]
[359931474,1746431454610,-376.0,0.00036712,14]
[359931476,1746431454620,-500.0,0.00036712,14]
[359931478,1746431454630,-29676.33386638,0.00036712,2]
[359931480,1746431454639,-449.91,0.00036712,14]
[359931482,1746431454648,-400.0,0.00036712,14]
[359931483,1746431454658,-400.0,0.00036712,14]
[359931486,1746431454667,-244.84843394,0.00036712,14]
[359931487,1746431454676,-400.0,0.00036712,14]
[359931489,1746431454685,-400.0,0.00036712,14]
[359931491,1746431454695,-400.0,0.00036712,14]
[359931493,1746431454704,-400.0,0.00036712,14]
[359931496,1746431454714,-400.0,0.00036712,14]
[359931497,1746431454724,-345.44999558,0.00036712,14]
[359931499,1746431454733,-151.0,0.00036712,14]
[359931501,1746431454743,-400.0,0.00036712,14]
[359931503,1746431454752,-400.0,0.00036712,14]
[359931505,1746431454761,-400.0,0.00036712,14]
[359931507,1746431454770,-400.0,0.00036712,14]
[359931509,1746431454779,-620.35,0.00036712,14]
[359931511,1746431454788,-1058.09,0.00036712,14]
[359931513,1746431454797,-400.0,0.00036712,14]
[359931515,1746431454807,-413.91,0.00036712,14]
[359931517,1746431454816,-400.0,0.00036712,14]
[359931519,1746431454826,-400.0,0.00036712,14]
[359931521,1746431454835,-400.0,0.00036712,14]
[359931523,1746431454845,-411.73645313,0.00036712,14]
[359931525,1746431454855,-400.0,0.00036712,14]
[359931527,1746431454864,-400.0,0.00036712,14]
[359931529,1746431454873,-530.24342244,0.00036712,14]
[359931531,1746431454882,-400.0,0.00036712,14]
[359931533,1746431454891,-400.0,0.00036712,14]
[359931535,1746431454900,-400.0,0.00036712,14]
[359931537,1746431454910,-400.0,0.00036712,14]
[359931539,1746431454919,-400.0,0.00036712,14]
[359931541,1746431454929,-402.56,0.00036712,14]
[359931543,1746431454938,-400.0,0.00036712,14]
[359931545,1746431454948,-919.39,0.00036712,14]
[359931547,1746431454957,-400.0,0.00036712,14]
[359931549,1746431454966,-151.0,0.00036712,14]
[359931551,1746431454975,-430.77,0.00036712,14]
[359931553,1746431454984,-567.54,0.00036712,14]
[359931555,1746431454993,-1065.94,0.00036712,2]
[359931557,1746431455003,-400.0,0.00036712,14]
[359931559,1746431455012,-151.0,0.00036712,14]
[359931561,1746431455021,-151.0,0.00036712,14]
[359931563,1746431455030,-400.0,0.00036712,14]
[359931565,1746431455039,-400.0,0.00036712,14]
[359931567,1746431455048,-311.093798,0.00036712,14]
[359931569,1746431455058,-400.0,0.00036712,14]
[359931571,1746431455067,-400.0,0.00036712,14]
[359931573,1746431455076,-311.093798,0.00036712,14]
[359931575,1746431455086,-400.0,0.00036712,14]
[359931577,1746431455095,-400.0,0.00036712,14]
[359931579,1746431455105,-1390.66,0.00036712,14]
[359931581,1746431455114,-400.0,0.00036712,14]
[359931583,1746431455124,-400.0,0.00036712,14]
[359931585,1746431455133,-400.0,0.00036712,14]
[359931587,1746431455142,-400.0,0.00036712,14]
[359931589,1746431455151,-400.0,0.00036712,14]
[359931591,1746431455160,-400.0,0.00036712,14]
[359931593,1746431455170,-418.95,0.00036712,14]
[359931595,1746431455179,-689.44,0.00036712,14]
[359931597,1746431455188,-400.0,0.00036712,14]
[359931599,1746431455197,-400.0,0.00036712,14]
[359931601,1746431455205,-400.0,0.00036712,14]
[359931603,1746431455215,-403.91,0.00036712,14]
[359931613,1746431455301,-400.0,0.00036712,14]
[359931615,1746431455310,-2422.87,0.00036712,14]
[359931617,1746431455320,-593.8,0.00036712,14]
[359931619,1746431455329,-400.0,0.00036712,14]
[359931622,1746431455343,-400.0,0.00036712,14]
[359931624,1746431455352,-400.0,0.00036712,14]
[359931626,1746431455361,-400.0,0.00036712,14]
[359931628,1746431455370,-874.22,0.00036712,14]
[359931630,1746431455379,-304.66116128,0.00036712,14]
[359931632,1746431455389,-400.0,0.00036712,14]
[359931634,1746431455398,-324.406642,0.00036712,14]
[359931635,1746431455407,-324.406642,0.00036712,14]
[359931638,1746431455418,-175.388768,0.00036712,14]
[359931640,1746431455428,-175.388768,0.00036712,14]
[359931641,1746431455437,-467.43,0.00036712,14]
[359931643,1746431455446,-400.0,0.00036712,14]
[359931645,1746431455456,-151.0,0.00036712,14]
[359931647,1746431455465,-331.98400241,0.00036712,14]
[359931649,1746431455474,-478.31,0.00036712,14]
[359931651,1746431455484,-400.0,0.00036712,14]
[359931653,1746431455494,-151.0,0.00036712,14]
[359931655,1746431455503,-400.0,0.00036712,14]
[359931658,1746431455513,-400.0,0.00036712,14]
[359931659,1746431455522,-400.0,0.00036712,14]
[359931661,1746431455532,-400.0,0.00036712,14]
[359931664,1746431455542,-153.99839501,0.00036712,14]
[359931666,1746431455551,-400.0,0.00036712,14]
[359931667,1746431455560,-168.83204703,0.00036712,14]
[359931669,1746431455570,-400.0,0.00036712,14]
[359931671,1746431455579,-150.26349705,0.00036712,14]
[359931674,1746431455589,-444.04,0.00036712,14]
[359931676,1746431455598,-400.0,0.00036712,14]
[359931678,1746431455608,-518.59,0.00036712,14]
[359931679,1746431455617,-400.0,0.00036712,14]
[359931681,1746431455627,-1222.27,0.00036712,14]
[359931683,1746431455636,-400.0,0.00036712,14]
[359931685,1746431455645,-151.0,0.00036712,14]
[359931687,1746431455655,-1484.31,0.00036712,14]
[359931689,1746431455664,-400.0,0.00036712,14]
[359931692,1746431455674,-1181.94,0.00036712,14]
[359931694,1746431455683,-400.0,0.00036712,14]
[359931696,1746431455692,-400.0,0.00036712,14]
[359931698,1746431455701,-400.0,0.00036712,14]
[359931700,1746431455710,-400.0,0.00036712,14]
[359931702,1746431455720,-2007.85,0.00036712,14]
[359931704,1746431455728,-400.0,0.00036712,14]
[359931706,1746431455737,-524.96,0.00036712,14]
[359931708,1746431455747,-676.94,0.00036712,14]
[359931709,1746431455756,-400.0,0.00036712,14]
[359931712,1746431455765,-594.21,0.00036712,14]
[359931714,1746431455775,-512.69662511,0.00036712,14]
[359931716,1746431455784,-5636.69,0.00036712,14]
[359931718,1746431455794,-400.0,0.00036712,14]
[359931720,1746431455802,-400.0,0.00036712,14]
[359931722,1746431455812,-400.0,0.00036712,14]
[359931724,1746431455821,-500.0,0.00036712,14]
[359931726,1746431455830,-400.0,0.00036712,14]
[359931728,1746431455839,-577.87,0.00036712,14]
[359931730,1746431455848,-2214.19,0.00036712,14]
[359931732,1746431455858,-400.0,0.00036712,14]
[359931734,1746431455871,-439.27,0.00036712,14]
[359931736,1746431455880,-400.0,0.00036712,14]
[359931738,1746431455890,-601.23,0.00036712,14]
[359931740,1746431455899,-400.0,0.00036712,14]
[359931742,1746431455909,-400.0,0.00036712,14]
[359931744,1746431455918,-400.0,0.00036712,14]
[359931746,1746431455928,-494.97356633,0.00036712,14]
[359931748,1746431455937,-400.0,0.00036712,14]
[359931750,1746431455946,-402.72,0.00036712,14]
[359931752,1746431455956,-168.214865,0.00036712,14]
[359931754,1746431455966,-168.214865,0.00036712,14]
[359931756,1746431455975,-151.0,0.00036712,14]
[359931758,1746431455985,-533.19,0.00036712,14]
[359931760,1746431455995,-400.0,0.00036712,14]
[359931762,1746431456004,-400.0,0.00036712,14]
[359931764,1746431456013,-400.0,0.00036712,14]
[359931766,1746431456023,-657.78,0.00036712,14]
[359931768,1746431456033,-400.0,0.00036712,14]
[359931770,1746431456042,-3148.33,0.00036712,14]
[359931772,1746431456053,-400.0,0.00036712,14]
[359931774,1746431456062,-400.0,0.00036712,14]
[359931776,1746431456072,-400.0,0.00036712,14]
[359931778,1746431456082,-708.598573,0.00036712,14]
[359931780,1746431456091,-400.0,0.00036712,14]
[359931782,1746431456102,-400.0,0.00036712,14]
[359931784,1746431456112,-400.0,0.00036712,14]
[359931786,1746431456122,-708.598573,0.00036712,14]
[359931788,1746431456131,-520.25,0.00036712,14]
[359931790,1746431456140,-400.0,0.00036712,14]
[359931792,1746431456150,-1424.37,0.00036712,14]
[359931794,1746431456160,-400.0,0.00036712,14]
[359931795,1746431456168,-514.9,0.00036712,14]
[359931796,1746431456178,-2867.55,0.00036712,14]
[359931797,1746431456187,-400.0,0.00036712,14]
[359931798,1746431456197,-471.11,0.00036712,14]
[359931799,1746431456207,-400.0,0.00036712,14]
[359931800,1746431456217,-727.17,0.00036712,14]
[359931801,1746431456226,-2092.45,0.00036712,14]
[359931802,1746431456236,-151.0,0.00036712,14]
[359931803,1746431456245,-400.0,0.00036712,14]
[359931804,1746431456258,-1835.12,0.00036712,14]
[359931805,1746431456267,-3261.67,0.00036712,14]
[359931806,1746431456277,-1081.5,0.00036712,14]
[359931807,1746431456287,-6831.86,0.00036712,14]
[359931808,1746431456297,-400.0,0.00036712,14]
[359931809,1746431456306,-151.0,0.00036712,14]
[359931810,1746431456317,-551.86,0.00036712,14]
[359931811,1746431456327,-423.41,0.00036712,14]
[359931812,1746431456339,-400.0,0.00036712,14]
[359931813,1746431456349,-760.49,0.00036712,14]
[359931815,1746431456359,-400.0,0.00036712,14]
[359931816,1746431456368,-3375.42,0.00036712,14]
[359931817,1746431456377,-3084.1,0.00036712,14]
[359931819,1746431456387,-537.19,0.00036712,14]
[359931820,1746431456397,-400.0,0.00036712,14]
[359931821,1746431456407,-400.0,0.00036712,14]
[359931822,1746431456417,-582.03,0.00036712,14]
[359931823,1746431456426,-561.7,0.00036712,14]
[359931824,1746431456436,-2861.16,0.00036712,14]
[359931825,1746431456446,-151.0,0.00036712,14]
[359931826,1746431456455,-960.8,0.00036712,14]
[359931827,1746431456465,-151.0,0.00036712,14]
[359931828,1746431456474,-1245.99,0.00036712,14]
[359931829,1746431456483,-400.0,0.00036712,14]
[359931830,1746431456493,-400.0,0.00036712,14]
[359931831,1746431456502,-400.0,0.00036712,14]
[359931832,1746431456512,-917.15,0.00036712,14]
[359931833,1746431456521,-400.0,0.00036712,14]
[359931834,1746431456531,-798.63,0.00036712,14]
[359931835,1746431456541,-2164.37,0.00036712,14]
[359931836,1746431456551,-244.05919643,0.00036739,14]
[359931837,1746431456560,-11428.89,0.000368,30]
[359931838,1746431456569,-151.0,0.000368,14]
[359931839,1746431456579,-1000.0,0.00036929,5]
[359931840,1746431456588,-500.0,0.00036973,5]
[359931841,1746431456597,-500.0,0.00036973,5]
[359931842,1746431456607,-157.952697,0.00036976,14]
[359931843,1746431456616,-151.0,0.00036976,14]
[359931844,1746431456694,-151.0,0.00036976,14]
[359931845,1746431456704,-151.0,0.00036976,14]
[359931846,1746431456713,-176.250222,0.00036976,14]
[359931847,1746431456723,-198.089713,0.00036976,2]
[359931848,1746431456732,-151.0,0.00036976,14]
[359931849,1746431456742,-198.089713,0.00036976,2]
[359931850,1746431456752,-151.0,0.00036976,14]
[359931851,1746431456761,-449.91,0.00036986,14]
[359931852,1746431456770,-400.0,0.00036986,14]
[359931853,1746431456780,-450.35872327,0.00036986,14]
[359931854,1746431456789,-400.0,0.00036986,14]
[359931855,1746431456799,-207.99616527,0.00036986,14]
[359931856,1746431456808,-400.0,0.00036986,14]
[359931857,1746431456818,-400.0,0.00036986,14]
[359931858,1746431456827,-400.0,0.00036986,14]
[359931859,1746431456837,-275.282959,0.00036986,14]
[359931860,1746431456846,-400.0,0.00036986,14]
[359931861,1746431456856,-400.0,0.00036986,14]
[359931862,1746431456865,-400.0,0.00036986,14]
[359931863,1746431456874,-400.0,0.00036986,14]
[359931864,1746431456883,-620.35,0.00036986,14]
[359931865,1746431456893,-1058.09,0.00036986,14]
[359931866,1746431456902,-400.0,0.00036986,14]
[359931867,1746431456911,-413.91,0.00036986,14]
[359931868,1746431456921,-408.08272637,0.00036986,14]
[359931869,1746431456930,-151.0,0.00036986,14]
[359931870,1746431456939,-400.0,0.00036986,14]
[359931871,1746431456948,-224.275852,0.00036986,14]
[359931872,1746431456958,-400.0,0.00036986,14]
[359931873,1746431456967,-224.275852,0.00036986,14]
[359931874,1746431456977,-151.0,0.00036986,14]
[359931875,1746431456986,-400.0,0.00036986,14]
[359931876,1746431456996,-400.0,0.00036986,14]
[359931877,1746431457005,-400.0,0.00036986,14]
[359931878,1746431457014,-400.0,0.00036986,14]
[359931879,1746431457024,-400.0,0.00036986,14]
[359931880,1746431457033,-234.46809439,0.00036986,14]
[359931881,1746431457043,-400.0,0.00036986,14]
[359931882,1746431457052,-400.0,0.00036986,14]
[359931883,1746431457062,-919.39,0.00036986,14]
[359931884,1746431457072,-400.0,0.00036986,14]
[359931885,1746431457081,-430.77,0.00036986,14]
[359931886,1746431457090,-567.54,0.00036986,14]
[359931887,1746431457099,-1065.94,0.00036986,2]
[359931888,1746431457109,-400.0,0.00036986,14]
[359931889,1746431457118,-400.0,0.00036986,14]
[359931890,1746431457128,-520.0646814,0.00036986,14]
[359931891,1746431457138,-400.0,0.00036986,14]
[359931892,1746431457147,-400.0,0.00036986,14]
[359931893,1746431457157,-400.0,0.00036986,14]
[359931894,1746431457167,-400.0,0.00036986,14]
[359931895,1746431457176,-1390.66,0.00036986,14]
[359931896,1746431457185,-400.0,0.00036986,14]
[359931897,1746431457194,-400.0,0.00036986,14]
[359931898,1746431457203,-400.0,0.00036986,14]
[359931899,1746431457212,-400.0,0.00036986,14]
[359931900,1746431457222,-400.0,0.00036986,14]
[359931901,1746431457231,-418.95,0.00036986,14]
[359931902,1746431457240,-689.44,0.00036986,14]
[359931903,1746431457249,-400.0,0.00036986,14]
[359931904,1746431457259,-459.27971807,0.00036986,14]
[359931905,1746431457269,-400.0,0.00036986,14]
[359931906,1746431457277,-403.91,0.00036986,14]
[359931907,1746431457286,-400.0,0.00036986,14]
[359931908,1746431457295,-2422.87,0.00036986,14]
[359931909,1746431457304,-593.8,0.00036986,14]
[359931910,1746431457314,-400.0,0.00036986,14]
[359931911,1746431457323,-400.0,0.00036986,14]
[359931912,1746431457333,-400.0,0.00036986,14]
[359931913,1746431457346,-400.0,0.00036986,14]
[359931914,1746431457355,-874.22,0.00036986,14]
[359931915,1746431457365,-400.0,0.00036986,14]
[359931916,1746431457374,-324.406642,0.00036986,14]
[359931917,1746431457383,-324.406642,0.00036986,14]
[359931918,1746431457392,-175.388768,0.00036986,14]
[359931919,1746431457401,-175.388768,0.00036986,14]
[359931920,1746431457411,-467.43,0.00036986,14]
[359931921,1746431457421,-400.0,0.00036986,14]
[359931922,1746431457431,-478.31,0.00036986,14]
[359931923,1746431457440,-400.0,0.00036986,14]
[359931924,1746431457450,-400.0,0.00036986,14]
[359931925,1746431457459,-400.0,0.00036986,14]
[359931926,1746431457469,-250.88130031,0.00036986,14]
[359931927,1746431457478,-400.0,0.00036986,14]
[359931928,1746431457487,-400.0,0.00036986,14]
[359931929,1746431457497,-444.04,0.00036986,14]
[359931930,1746431457506,-400.0,0.00036986,14]
[359931931,1746431457517,-518.59,0.00036986,14]
[359931932,1746431457527,-400.0,0.00036986,14]
[359931933,1746431457538,-1222.27,0.00036986,14]
[359931934,1746431457547,-400.0,0.00036986,14]
[359931935,1746431457557,-151.0,0.00036986,14]
[359931936,1746431457566,-1484.31,0.00036986,14]
[359931937,1746431457576,-400.0,0.00036986,14]
[359931938,1746431457585,-1181.94,0.00036986,14]
[359931939,1746431457594,-417.96873159,0.00036986,14]
[359931940,1746431457604,-400.0,0.00036986,14]
[359931941,1746431457613,-400.0,0.00036986,14]
[359931942,1746431457623,-400.0,0.00036986,14]
[359931943,1746431457633,-151.0,0.00036986,14]
[359931944,1746431457642,-151.0,0.00036986,14]
[359931945,1746431457651,-2007.85,0.00036986,14]
[359931946,1746431457660,-400.0,0.00036986,14]
[359931947,1746431457670,-524.96,0.00036986,14]
[359931948,1746431457679,-676.94,0.00036986,14]
[359931949,1746431457688,-400.0,0.00036986,14]
[359931950,1746431457697,-819.404056,0.00036986,14]
[359931951,1746431457707,-594.21,0.00036986,14]
[359931952,1746431457716,-819.404056,0.00036986,14]
[359931953,1746431457726,-5636.69,0.00036986,14]
[359931954,1746431457735,-400.0,0.00036986,14]
[359931955,1746431457744,-400.0,0.00036986,14]
[359931956,1746431457754,-400.0,0.00036986,14]
[359931957,1746431457765,-577.87,0.00036986,14]
[359931958,1746431457774,-253.131864,0.00036986,14]
[359931959,1746431457783,-2214.19,0.00036986,14]
[359931960,1746431457793,-253.131864,0.00036986,14]
[359931961,1746431457802,-400.0,0.00036986,14]
[359931962,1746431457812,-439.27,0.00036986,14]
[359931963,1746431457822,-400.0,0.00036986,14]
[359931964,1746431457831,-601.23,0.00036986,14]
[359931965,1746431457840,-400.0,0.00036986,14]
[359931966,1746431457849,-400.0,0.00036986,14]